bitfinex-derivatives/quotes_ETHF0:USTF0_20241129
["timestamp","ask_amount","ask_price","bid_price","bid_amount"]
[1732910584627,3.2078,3581.1,3580.5,0.8337]
[1732910584824,0.27899,3581.0,3580.7,0.279]
[1732910585025,0.27899,3581.0,3580.8,0.27899]
[1732910585221,3.2078,3581.1,3580.6,3.2078]
[1732910585425,0.279,3580.8,3580.7,0.279]
[1732910585727,0.279,3580.8,3580.7,0.289]
[1732910586024,0.27899,3580.9,3580.8,0.279]
[1732910586325,0.27899,3580.9,3580.6,3.2078]
[1732910586326,3.2078,3581.1,3580.6,3.2078]
[1732910586526,3.2078,3581.1,3581.0,0.27898]
[1732910587030,2.994,3581.5,3581.4,0.27895]
[1732910587221,0.27894,3581.6,3581.5,0.27894]
[1732910587420,3.2078,3581.7,3581.1,1.1933]
[1732910587621,2.994,3581.9,3581.4,3.2078]
[1732910587827,0.27892,3581.8,3581.7,0.27892]
[1732910588227,2.994,3581.9,3581.4,3.2078]
[1732910588424,0.27892,3581.8,3581.7,0.27892]
[1732910589125,0.27893,3581.8,3581.7,0.27893]
[1732910589424,2.994,3581.9,3581.4,3.2078]
[1732910589630,0.27893,3581.7,3581.6,0.27893]
[1732910589922,2.994,3581.9,3581.4,3.2078]
[1732910590124,3.27291,3581.9,3581.8,0.27892]
[1732910590523,0.27892,3581.8,3581.7,0.27892]
[1732910591026,3.27291,3581.9,3581.8,0.27892]
[1732910591724,0.27891,3581.9,3581.8,0.27892]
[1732910591926,0.6146,3582.1,3581.4,3.2078]
[1732910592123,0.6146,3582.1,3581.4,3.4578]
[1732910592422,0.27893,3581.8,3581.4,3.4578]
[1732910592621,0.27893,3581.8,3581.7,0.27893]
[1732910593230,0.27892,3581.8,3581.7,0.27892]
[1732910593730,0.27891,3582.0,3581.9,0.27891]
[1732910594030,3.2078,3582.2,3581.5,0.69736]
[1732910594236,3.2078,3582.2,3582.1,0.2789]
[1732910594430,3.48669,3582.2,3582.1,0.2789]
[1732910595130,0.2789,3582.1,3582.0,0.2789]
[1732910595329,0.27887,3582.4,3582.3,0.27888]
[1732910596025,0.27889,3582.3,3582.2,0.27888]
[1732910596434,0.612,3582.5,3581.9,1.2094]
[1732910596728,0.27889,3582.2,3582.1,0.27889]
[1732910596937,0.27889,3582.3,3582.2,0.27888]
[1732910597430,2.994,3582.6,3581.9,1.2094]
[1732910597623,2.994,3582.6,3581.9,2.4894]
[1732910598024,5.11957796,3582.6,3581.9,2.4894]
[1732910598329,0.2789,3582.1,3581.9,2.76831]
[1732910598525,0.2789,3582.1,3581.9,2.4894]
[1732910598931,0.2789,3582.0,3581.9,2.76831]
[1732910599833,5.11957796,3582.6,3581.9,2.4894]
[1732910600137,5.11957796,3582.6,3582.1,0.27889]
[1732910600138,0.27889,3582.2,3582.1,0.27889]
[1732910600338,5.11957796,3582.6,3581.9,1.2094]
[1732910600531,0.27889,3582.2,3582.1,0.27889]
[1732910600940,0.2789,3582.1,3582.0,0.2789]
[1732910601238,0.2789,3582.1,3582.0,0.5889]
[1732910601735,5.11957796,3582.6,3582.0,0.31]
[1732910601931,0.27889,3582.3,3582.2,0.27888]
[1732910602131,2.994,3582.6,3581.9,1.2094]
[1732910602334,0.27889,3582.3,3582.2,0.27888]
[1732910603428,0.69717,3582.5,3581.9,1.2094]
[1732910603630,0.2789,3582.1,3582.0,0.2789]
[1732910603835,0.97607,3582.4,3582.0,0.06]
[1732910604041,0.2789,3582.1,3582.0,0.06]
[1732910605144,0.27893,3581.7,3581.6,0.6372]
[1732910605435,0.27893,3581.7,3581.6,0.8272]
[1732910605829,0.27893,3581.7,3581.6,1.10613]
[1732910606843,0.27893,3581.7,3581.6,0.19]
[1732910607031,0.27893,3581.7,3581.6,0.46893]
[1732910607342,0.27893,3581.7,3581.6,0.19]
[1732910607736,0.27893,3581.7,3581.6,0.46893]
[1732910611236,3.27117096,3581.8,3581.6,0.19]
[1732910611436,3.55010096,3581.7,3581.6,0.19]
[1732910611641,3.55010096,3581.7,3581.0,3.2078]
[1732910611642,0.27896,3581.3,3581.0,3.2078]
[1732910611836,0.27897,3581.2,3581.1,0.38546031]
[1732910612035,0.27897,3581.1,3581.0,3.48678]
[1732910612234,0.27897,3581.1,3581.0,3.9322963]
[1732910612433,3.5555409,3581.1,3581.0,3.9322963]
[1732910612633,3.2765709,3581.1,3581.0,3.9322963]
[1732910612841,3.5555409,3581.1,3581.0,3.9322963]
[1732910613037,3.2765709,3581.1,3581.0,3.9322963]
[1732910613243,0.88047,3581.2,3581.0,3.6533163]
[1732910613438,0.6015,3581.2,3581.1,0.6644863]
[1732910613651,0.88047,3581.2,3581.1,0.6644863]
[1732910614438,4.3687612,3581.3,3581.2,0.27897]
[1732910614641,4.3687612,3581.3,3581.2,0.6644863]
[1732910614843,4.6477212,3581.3,3581.2,0.66285249]
[1732910615042,0.27896,3581.3,3581.2,0.66285249]
[1732910615239,4.6477212,3581.3,3581.2,0.66285249]
[1732910616437,5.44168958,3581.5,3581.2,0.38388249]
[1732910616644,4.37654089,3581.3,3580.9,3.90527]
[1732910616848,3.28237671,3581.0,3580.9,4.36679]
[1732910617036,3.28237671,3581.0,3580.9,5.36815267]
[1732910617541,3.28237671,3581.0,3580.9,5.36801059]
[1732910618343,4.37654089,3581.3,3580.9,5.36801059]
[1732910618647,4.37654089,3581.4,3581.3,0.27896]
[1732910618842,4.37654089,3581.5,3581.3,4.78788484]
[1732910619140,4.37654089,3581.6,3581.5,0.27894]
[1732910619342,5.72061958,3581.8,3581.5,0.38508484]
[1732910619551,5.72061958,3581.8,3581.7,0.27893]
[1732910620146,0.27893,3581.7,3581.6,0.27893]
[1732910620347,5.72061958,3581.7,3581.6,0.27893]
[1732910621441,5.44168958,3581.7,3581.6,0.27893]
[1732910621752,9.10610604,3582.1,3581.3,4.72019]
[1732910621941,4.37820221,3581.4,3581.3,4.89176]
[1732910622837,4.37820221,3581.4,3581.3,1.68396]
[1732910623044,5.47275276,3581.4,3581.3,4.6128]
[1732910623242,5.47275276,3581.4,3581.3,4.89176]
[1732910625044,5.47275276,3581.4,3581.3,1.68396]
[1732910625348,5.47275276,3581.4,3581.3,4.89176]
[1732910626150,0.27894,3581.6,3581.5,0.27894]
[1732910626350,0.27893,3581.7,3581.6,0.27893]
[1732910626942,0.27895,3581.4,3581.3,0.27895]
[1732910627743,5.20667888,3581.4,3581.3,0.27895]
[1732910627941,11.76942492,3581.4,3581.3,0.27895]
[1732910629853,11.77305785,3581.4,3581.3,0.27895]
[1732910630047,0.27117284,3581.4,3581.3,0.27895]
[1732910631152,0.27117284,3581.4,3581.0,1.51245]
[1732910631153,1.2268,3581.5,3581.4,0.27895]
[1732910631340,0.86824,3581.6,3581.5,0.27894]
[1732910631745,0.86823,3581.6,3581.5,0.27894]
[1732910631948,7.44258613,3581.8,3581.7,0.27893]
[1732910632148,0.86842,3581.8,3581.7,0.27893]
[1732910633645,5.80143658,3581.8,3581.7,0.27893]
[1732910633851,0.27894,3581.7,3581.6,0.27893]
[1732910634051,5.21227383,3581.7,3581.3,0.27895]
[1732910634250,0.27895,3581.4,3581.3,0.62895]
[1732910634653,0.88555,3581.4,3581.3,0.62895]
[1732910636251,0.88555,3581.4,3581.3,0.35]
[1732910636457,0.27897,3581.2,3581.1,0.27897]
[1732910637148,6.57416613,3581.2,3581.1,0.27897]
[1732910637350,6.57416613,3581.2,3581.1,0.52897]
[1732910637850,6.57416613,3581.3,3581.1,0.25]
[1732910638049,11.50706861,3581.3,3581.2,0.27897]
[1732910638255,11.50706861,3581.3,3581.2,4.31497]
[1732910638554,7.65594801,3581.8,3581.2,6.55721489]
[1732910638752,0.6195,3581.9,3581.6,0.27893]
[1732910638753,4.93215772,3581.7,3581.6,0.27893]
[1732910639052,4.93215772,3581.7,3581.6,0.30893]
[1732910639457,4.93215772,3581.7,3581.6,3.51673]
[1732910642565,4.93215772,3581.7,3581.6,3.91221789]
[1732910643364,4.93215772,3581.7,3581.6,3.51673]
[1732910643663,5.21108772,3581.7,3581.6,3.51673]
[1732910643863,4.93215772,3581.7,3581.6,3.51673]
[1732910644362,5.81158772,3581.7,3581.6,3.51673]
[1732910644962,5.81158772,3581.7,3581.6,3.48673]
[1732910645156,0.6005,3581.7,3581.6,3.48673]
[1732910645658,0.27894,3581.5,3581.4,0.27895]
[1732910645862,0.69736,3581.6,3581.2,3.2078]
[1732910646062,0.27896,3581.3,3581.2,3.3178]
[1732910646462,5.78681473,3581.3,3581.2,3.59677]
[1732910648664,5.78681473,3581.3,3581.2,0.38897]
[1732910651667,5.78681473,3581.3,3581.2,0.27897]
[1732910652163,5.50785473,3581.3,3580.8,3.2078]
[1732910652364,0.27899,3580.9,3580.8,3.4378]
[1732910652561,0.27903,3580.5,3580.4,0.27902]
[1732910652880,5.19328473,3580.5,3580.4,0.27902]
[1732910653168,12.87424686,3580.5,3580.4,0.27902]
[1732910653364,6.41158473,3580.5,3580.4,0.27902]
[1732910655266,6.13255473,3580.5,3580.2,3.2078]
[1732910655464,6.13255473,3580.5,3580.2,0.27904]
[1732910655465,6.57928512,3580.3,3580.2,0.27904]
[1732910655666,6.85832512,3580.3,3580.2,0.27904]
[1732910655868,11.77257985,3580.3,3580.2,0.27904]
[1732910657162,14.70133985,3580.3,3579.4,3.2078]
[1732910657463,5.47931788,3579.6,3579.4,6.8478]
[1732910657665,5.47931788,3579.8,3579.5,1.2279]
[1732910657969,5.4762181,3579.8,3579.7,0.27908]
[1732910658170,5.4762243,3579.8,3579.7,0.27908]
[1732910658370,5.4762243,3579.9,3579.6,0.6161]
[1732910658567,5.4762243,3579.9,3579.8,0.27907]
[1732910659774,5.4762243,3579.9,3579.8,3.48687]
[1732910660271,0.27905,3580.1,3579.8,3.2078]
[1732910660272,4.65738324,3580.1,3579.8,3.2078]
[1732910660468,4.65738324,3580.1,3580.0,0.27906]
[1732910661173,4.37833324,3580.1,3580.0,0.28906]
[1732910661372,4.37833324,3580.2,3580.1,0.27905]
[1732910661667,0.27905,3580.1,3580.0,0.27905]
[1732910662467,0.27905,3580.1,3580.0,0.41905]
[1732910662767,0.27905,3580.1,3580.0,0.41906]
[1732910662972,4.65738324,3580.1,3580.0,0.14]
[1732910663264,4.65738324,3580.1,3579.8,3.2078]
[1732910663265,0.27907,3579.9,3579.8,3.2078]
[1732910663471,0.27907,3579.9,3579.8,0.08]
[1732910663871,0.88497,3579.9,3579.8,0.08]
[1732910664364,5.2597369,3579.9,3579.8,0.08]
[1732910665073,0.88497,3579.9,3579.8,0.08]
[1732910665367,0.6059,3579.9,3579.8,0.35907]
[1732910665566,4.3747669,3580.2,3580.0,0.27906]
[1732910665769,4.3747669,3580.2,3580.1,0.92565]
[1732910665974,4.3747669,3580.3,3580.2,0.27904]
[1732910666171,4.3747669,3580.4,3580.2,3.8381]
[1732910666472,0.27902,3580.5,3580.2,3.8381]
[1732910666773,4.3747669,3580.6,3580.2,3.8381]
[1732910667268,4.3747669,3580.6,3580.5,0.27902]
[1732910667572,0.92801,3580.7,3580.6,0.27901]
[1732910667573,0.27901,3580.7,3580.6,0.27901]
[1732910667973,4.3747669,3580.8,3580.3,1.3062]
[1732910667974,4.6537669,3580.8,3580.7,0.279]
[1732910668268,7.5825669,3580.9,3580.3,1.30618]
[1732910668475,7.8615569,3580.9,3580.8,0.279]
[1732910668968,7.5825669,3580.9,3580.8,0.279]
[1732910669166,3.2078,3580.9,3580.8,0.279]
[1732910669365,3.48679,3580.9,3580.8,0.279]
[1732910670675,3.2078,3580.9,3580.4,0.814]
[1732910670865,3.2078,3580.9,3580.6,0.27901]
[1732910670866,0.27901,3580.7,3580.6,0.27901]
[1732910671065,0.279,3580.8,3580.7,0.279]
[1732910673175,0.279,3580.8,3580.6,0.27901]
[1732910673769,0.279,3580.8,3580.7,0.6443]
[1732910674676,4.3747669,3580.9,3580.8,0.279]
[1732910674876,0.27899,3580.9,3580.8,0.279]
[1732910675267,0.27899,3580.9,3580.8,0.27899]
[1732910675575,5.7552143,3580.9,3580.8,0.27899]
[1732910675977,0.279,3580.8,3580.7,0.9233]
[1732910676174,5.74504296,3580.8,3580.7,0.6443]
[1732910676683,5.74504296,3580.8,3580.7,0.9233]
[1732910676869,5.74504296,3580.8,3580.7,0.6443]
[1732910677172,5.74504296,3580.8,3580.7,0.9233]
[1732910677570,5.74504296,3580.8,3580.7,0.9333]
[1732910677974,5.46604296,3580.8,3580.7,0.9333]
[1732910678575,5.46604296,3580.8,3580.7,0.9233]
[1732910679678,5.46604296,3580.8,3580.7,1.1333]
[1732910681384,0.279,3580.9,3580.7,0.8543]
[1732910681573,5.46832847,3580.8,3580.7,1.1333]
[1732910682380,4.65381769,3580.9,3580.7,0.8543]
[1732910682581,4.65381769,3580.9,3580.8,0.279]
[1732910683576,4.37481769,3580.9,3580.8,0.279]
[1732910684178,4.65380769,3580.9,3580.8,0.279]
[1732910685080,4.37481769,3580.9,3580.7,0.6443]
[1732910685281,4.65381769,3580.8,3580.7,0.6943]
[1732910685479,0.27901,3580.6,3580.5,0.27902]
[1732910685786,0.27901,3580.6,3580.5,0.36902]
[1732910685787,4.65531264,3580.6,3580.5,0.36902]
[1732910685978,0.27901,3580.6,3580.5,0.09]
[1732910686181,4.65548191,3580.6,3580.5,0.09]
[1732910686684,0.27901,3580.6,3580.5,0.09]
[1732910686996,5.74733847,3580.6,3580.5,0.09]
[1732910687877,5.74733847,3580.6,3580.5,0.36902]
[1732910688279,5.74733847,3580.6,3580.5,0.09]
[1732910688479,5.74733847,3580.6,3580.5,0.36902]
[1732910688783,5.74733847,3580.6,3580.5,0.09]
[1732910689486,0.27901,3580.6,3580.5,0.09]
[1732910690483,0.27901,3580.6,3580.2,0.814]
[1732910690484,0.27904,3580.3,3580.2,0.814]
[1732910690685,0.27904,3580.3,3580.2,1.23304]
[1732910691386,5.7546947,3580.3,3580.2,1.23304]
[1732910694488,0.27904,3580.3,3580.2,1.23304]
[1732910695691,0.27904,3580.3,3580.2,0.41904]
[1732910697590,6.85832512,3580.3,3580.2,0.41904]
[1732910700482,6.85832512,3580.3,3580.2,1.44840705]
[1732910700684,6.57928512,3580.4,3580.3,0.27904]
[1732910700888,6.85831512,3580.4,3580.3,0.27904]
[1732910701189,0.27904,3580.3,3580.2,0.27904]
[1732910701690,6.57928512,3580.4,3580.1,3.2078]
[1732910701887,6.57928512,3580.4,3580.3,0.27903]
[1732910702483,6.85830512,3580.5,3580.4,0.27903]
[1732910702688,6.57661842,3580.5,3580.4,0.27903]
[1732910702896,0.27902,3580.5,3580.4,0.27903]
[1732910703090,6.57661842,3580.6,3580.5,0.27902]
[1732910703291,6.57661842,3580.6,3580.1,3.8403]
[1732910703488,6.57661842,3580.4,3580.1,3.2778]
[1732910703690,0.27904,3580.2,3580.1,3.55684]
[1732910703891,0.69755,3580.6,3580.3,0.27904]
[1732910703892,6.85564842,3580.4,3580.3,0.27904]
[1732910704291,11.33755918,3580.7,3580.4,0.27903]
[1732910704292,6.57661842,3580.5,3580.4,0.27903]
[1732910704593,6.85563842,3580.5,3580.4,0.27903]
[1732910704893,6.57661842,3580.5,3580.4,0.27903]
[1732910705300,6.85563842,3580.5,3580.4,0.27903]
[1732910705495,0.27902,3580.5,3580.4,0.27903]
[1732910705699,0.27902,3580.6,3580.5,0.27901]
[1732910705902,0.27903,3580.5,3580.4,0.27902]
[1732910706200,0.27904,3580.3,3580.2,1.30840705]
[1732910706498,0.27903,3580.4,3580.3,0.27903]
[1732910707690,0.27903,3580.4,3580.2,1.02936705]
[1732910707691,6.57661842,3580.6,3580.2,1.02936705]
[1732910707899,0.27901,3580.6,3580.5,0.27902]
[1732910708396,7.85421842,3580.7,3580.6,0.27901]
[1732910708599,6.57661842,3580.8,3580.5,4.23716705]
[1732910708797,5.48151064,3580.7,3580.6,1.66225302]
[1732910708999,5.48151064,3580.9,3580.6,2.72225302]
[1732910709198,4.38492436,3580.7,3580.6,2.60511]
[1732910709505,4.38492436,3580.7,3580.6,3.63476801]
[1732910709506,3.88492436,3580.7,3580.6,3.63476801]
[1732910709799,3.37455436,3580.7,3580.6,3.63476801]
[1732910710001,6.57661842,3581.4,3581.3,0.27896]
[1732910710403,3.48675,3581.5,3581.4,0.27895]
[1732910710605,3.2078,3581.5,3581.4,0.27895]
[1732910710996,3.48674,3581.5,3581.4,0.27895]
[1732910712399,10.06554902,3581.5,3581.4,0.27895]
[1732910712599,20.61559398,3581.5,3581.4,0.27895]
[1732910712804,0.27896,3581.4,3581.3,0.27895]
[1732910713003,0.27896,3581.3,3581.2,0.92306]
[1732910713199,8.77115167,3581.3,3580.9,3.2078]
[1732910713401,8.77115167,3581.3,3580.6,0.6339]
[1732910713402,1.02936705,3581.0,3580.6,0.6339]
[1732910713601,0.27901,3580.6,3580.5,3.48681]
[1732910713797,9.05016167,3580.6,3580.5,0.33902]
[1732910714006,9.05016167,3580.6,3580.5,0.27902]
[1732910714502,8.77115167,3580.6,3580.5,0.27902]
[1732910714808,0.27901,3580.7,3580.6,0.27901]
[1732910714809,9.05016167,3580.7,3580.6,0.27901]
[1732910715101,0.27901,3580.7,3580.6,0.27901]
[1732910715306,8.77115167,3580.7,3580.6,0.27901]
[1732910715501,9.05015167,3580.8,3580.7,0.279]
[1732910715697,16.18612803,3580.8,3580.7,0.279]
[1732910716105,0.279,3580.7,3580.6,0.27901]
[1732910716308,0.27902,3580.6,3580.5,0.27901]
[1732910717105,8.77115167,3580.7,3580.4,3.2078]
[1732910717303,8.77115167,3580.7,3580.6,0.27901]
[1732910717304,9.05017167,3580.7,3580.6,0.27901]
[1732910717505,16.18652676,3580.7,3580.6,0.27901]
[1732910717812,0.27902,3580.6,3580.5,0.27901]
[1732910718004,9.05223662,3580.6,3580.5,0.27901]
[1732910718300,8.77321662,3580.7,3580.3,4.23716705]
[1732910718504,7.67618094,3580.5,3580.3,4.23716705]
[1732910718806,7.67618094,3580.5,3580.4,0.27903]
[1732910718997,7.67618094,3580.5,3580.4,0.28903]
[1732910719200,0.27902,3580.5,3580.4,0.28903]
[1732910719400,9.05223662,3580.5,3580.4,0.27903]
[1732910719597,8.77321662,3580.5,3580.2,0.813]
[1732910719901,9.05225662,3580.4,3580.3,0.27903]
[1732910720502,9.80258367,3580.4,3580.1,0.6333]
[1732910720704,8.69629754,3580.3,3580.2,0.27904]
[1732910721403,2.11634,3580.3,3580.2,0.27904]
[1732910722802,0.27904,3580.2,3580.1,0.91234]
[1732910723000,0.27904,3580.2,3580.1,0.6333]
[1732910723202,0.27904,3580.2,3580.1,0.91235]
[1732910725010,0.27904,3580.2,3580.1,0.27905]
[1732910725314,0.27907,3579.9,3579.8,0.88117]
[1732910725504,7.60981827,3580.0,3579.6,0.27909]
[1732910725705,0.27908,3579.7,3579.6,0.27909]
[1732910726210,7.50263122,3579.7,3579.6,0.27909]
[1732910726408,0.92218,3579.7,3579.6,0.27909]
[1732910727010,0.92218,3579.7,3579.4,0.6021]
[1732910727011,0.27909,3579.6,3579.5,0.27909]
[1732910727700,7.22355122,3579.7,3579.6,0.27909]
[1732910727701,7.50264122,3579.7,3579.6,0.27909]
[1732910728204,0.2791,3579.6,3579.5,0.27909]
[1732910728508,0.2791,3579.5,3579.4,0.6021]
[1732910728703,0.27912,3579.3,3579.2,0.27912]
[1732910728909,1.30847705,3579.4,3579.3,0.27911]
[1732910729309,0.27911,3579.4,3579.3,0.27911]
[1732910729814,6.58045122,3579.6,3579.1,1.02936705]
[1732910730009,5.47921097,3579.3,3579.2,0.27912]
[1732910730708,5.4786266,3579.3,3579.2,0.27912]
[1732910731014,5.4786266,3579.4,3579.3,0.27911]
[1732910731310,9.57445122,3580.2,3579.5,0.69774]
[1732910731517,7.49059122,3580.3,3580.0,3.2078]
[1732910731811,1.02936705,3580.2,3579.6,0.812]
[1732910732110,0.27908,3579.7,3579.6,0.38909]
[1732910732314,0.27908,3579.7,3579.6,0.27909]
[1732910732518,6.58045122,3579.9,3579.7,0.27908]
[1732910732519,1.55038,3579.8,3579.7,0.27908]
[1732910732713,1.2713,3579.8,3579.7,0.27908]
[1732910732915,6.58045122,3580.0,3579.5,3.2078]
[1732910733116,0.93424,3580.3,3580.2,0.27904]
[1732910733322,0.6552,3580.3,3580.2,0.27904]
[1732910733509,0.6552,3580.3,3579.9,3.2078]
[1732910733820,0.27904,3580.2,3580.1,0.27905]
[1732910734125,0.27904,3580.2,3579.9,3.2078]
[1732910734126,7.23565122,3580.3,3580.2,0.27904]
[1732910734314,7.51469122,3580.3,3580.2,0.27904]
[1732910734618,7.51469122,3580.3,3579.9,3.2078]
[1732910734619,0.27905,3580.2,3580.1,0.27905]
[1732910735119,7.23565122,3580.3,3579.9,3.8164]
[1732910735413,0.93424,3580.3,3580.2,0.27904]
[1732910735612,0.6552,3580.3,3580.2,0.27904]
[1732910738816,0.93424,3580.3,3580.2,0.27904]
[1732910741029,0.6552,3580.3,3580.2,0.27904]
[1732910743027,7.2280085,3580.3,3580.2,0.27904]
[1732910743930,7.2279928,3580.3,3580.2,0.27904]
[1732910745529,7.5070328,3580.3,3580.2,0.27904]
[1732910745735,0.6552,3580.3,3580.0,3.2078]
[1732910745934,0.93424,3580.3,3580.2,0.27904]
[1732910746136,0.6552,3580.3,3580.2,0.27904]
[1732910746935,7.22816854,3580.3,3580.2,0.27904]
[1732910747231,6.57296854,3580.3,3580.2,0.27904]
[1732910750633,1.2346,3580.5,3580.1,3.2078]
[1732910750829,1.51362,3580.5,3580.4,0.27903]
[1732910751028,8.08658854,3580.5,3580.4,0.27903]
[1732910751428,7.80756854,3580.5,3580.1,3.2078]
[1732910751634,0.27903,3580.4,3580.3,0.27903]
[1732910752139,8.08659854,3580.5,3580.4,0.27903]
[1732910753140,7.80756854,3580.5,3580.4,0.27903]
[1732910753732,8.08658854,3580.5,3580.4,0.27903]
[1732910754134,7.80756854,3580.5,3580.4,0.27903]
[1732910755337,1.2346,3580.5,3580.4,0.48903]
[1732910755540,0.6148,3580.5,3580.4,1.11233]
[1732910755840,4.97791317,3580.6,3580.5,0.27902]
[1732910756138,0.6166,3581.2,3581.1,0.27897]
[1732910760638,0.6166,3581.2,3581.1,1.3085512]
[1732910761854,0.27894,3581.6,3581.1,1.2595812]
[1732910761855,6.57296854,3581.6,3581.1,1.2595812]
[1732910762139,0.636,3581.5,3581.4,1.3085312]
[1732910764342,0.91494,3581.5,3581.4,1.3085312]
[1732910764543,0.91494,3581.5,3581.4,0.27895]
[1732910764544,0.636,3581.5,3581.4,0.27895]
[1732910764944,8.31261713,3581.5,3581.4,0.27895]
[1732910765540,8.31261713,3581.5,3581.3,3.2078]
[1732910765837,0.27897,3581.2,3581.1,0.27897]
[1732910766137,6.84400852,3581.2,3581.1,0.27897]
[1732910766733,6.56503852,3581.2,3580.8,1.0295812]
[1732910766935,0.6466,3581.1,3581.0,0.27897]
[1732910769038,7.21163852,3581.1,3581.0,0.27897]
[1732910770746,7.49060852,3581.1,3581.0,0.27897]
[1732910771044,7.21163852,3581.1,3581.0,0.27897]
[1732910771239,7.21163852,3581.1,3580.8,1.0295812]
[1732910771439,0.27899,3580.9,3580.8,0.35899]
[1732910771838,6.34402852,3580.9,3580.8,0.35899]
[1732910772039,5.84402852,3580.9,3580.8,0.27899]
[1732910772646,1.54769,3581.0,3580.9,0.27899]
[1732910773548,1.2687,3581.0,3580.7,4.2373812]
[1732910773736,0.279,3580.9,3580.8,0.27899]
[1732910774043,1.2687,3581.0,3580.7,4.2373812]
[1732910774243,0.279,3580.9,3580.8,0.27899]
[1732910774648,1.2687,3581.0,3580.7,4.2373812]
[1732910774952,7.95554713,3581.7,3581.6,0.27893]
[1732910775152,0.5979,3581.8,3581.7,0.27893]
[1732910776449,0.5979,3581.8,3581.7,0.29893]
[1732910776641,0.5979,3582.2,3582.1,0.2789]
[1732910776843,0.5979,3582.2,3582.1,1.3084812]
[1732910777052,6.06770478,3582.2,3582.1,1.3084812]
[1732910777344,5.46980478,3582.2,3582.1,1.3084812]
[1732910777642,0.5979,3582.5,3582.2,0.27889]
[1732910777643,5.46980478,3582.3,3582.2,0.27889]
[1732910777844,5.46980478,3582.3,3582.2,0.62679]
[1732910778346,6.06770478,3582.4,3582.3,0.27888]
[1732910779040,5.46980478,3582.4,3582.3,0.27888]
[1732910779243,5.46980478,3582.5,3582.3,0.27888]
[1732910779544,0.27887,3582.4,3582.3,0.27888]
[1732910779947,0.27887,3582.4,3582.2,0.62678]
[1732910779948,0.27888,3582.4,3582.2,0.62678]
[1732910780150,5.4650288,3582.3,3582.2,0.62678]
[1732910780748,5.4650288,3582.3,3582.2,0.62679]
[1732910780942,0.27888,3582.4,3582.3,0.27888]
[1732910781145,5.46384964,3582.4,3582.2,0.62678]
[1732910781347,5.74271964,3582.4,3582.2,0.62678]
[1732910781851,5.46384964,3582.4,3582.2,0.62678]
[1732910782046,0.27888,3582.3,3582.2,0.62678]
[1732910783145,0.27888,3582.3,3582.2,0.3479]
[1732910783551,0.6211,3582.6,3582.2,0.3479]
[1732910783552,5.46384964,3582.5,3582.2,0.3479]
[1732910783953,0.27888,3582.4,3582.3,0.27888]
[1732910784349,5.460992,3582.5,3582.2,0.3479]
[1732910784548,4.3681666,3582.3,3582.2,0.62679]
[1732910785949,0.89996,3582.6,3582.2,0.3479]
[1732910785950,6.08067033,3582.6,3582.2,0.3479]
[1732910786150,6.08067033,3582.6,3582.5,0.27886]
[1732910786347,0.6211,3582.6,3582.5,0.27886]
[1732910786650,4.98812551,3582.6,3582.5,0.27886]
[1732910786849,0.6211,3582.6,3582.5,0.27886]
[1732910787049,0.6211,3582.6,3582.5,0.90816]
[1732910787249,3.89547597,3582.6,3582.5,0.90816]
[1732910787451,3.27437597,3582.6,3582.5,0.90816]
[1732910788046,5.45957033,3582.7,3582.6,0.27886]
[1732910789251,5.45957033,3582.8,3582.5,0.6293]
[1732910789457,4.36456239,3582.6,3582.5,2.37716]
[1732910789865,4.36456239,3582.7,3582.6,0.27886]
[1732910790155,4.36456239,3582.7,3582.6,3.5954922]
[1732910790357,3.86456239,3582.7,3582.6,3.5954922]
[1732910790757,3.36456239,3582.7,3582.6,3.5954922]
[1732910792258,3.27306948,3582.9,3582.8,0.27884]
[1732910792451,3.27306948,3582.9,3582.8,3.50664]
[1732910792763,0.27882,3583.1,3582.9,0.27883]
[1732910792950,0.27882,3583.1,3582.8,3.2278]
[1732910792951,0.27882,3583.1,3583.0,0.27883]
[1732910793355,0.27882,3583.1,3583.0,0.27882]
[1732910794061,0.27883,3583.0,3582.9,0.27883]
[1732910794263,0.27882,3583.1,3583.0,0.27882]
[1732910794560,0.90421,3583.2,3583.0,0.27882]
[1732910794952,4.17487148,3583.2,3583.0,0.27882]
[1732910795152,3.89606148,3583.2,3583.0,0.27882]
[1732910795352,0.27883,3582.9,3582.8,3.2078]
[1732910795557,0.27883,3582.9,3582.8,0.01]
[1732910795750,0.27884,3582.8,3582.7,0.27885]
[1732910795952,0.92504,3582.8,3582.7,0.30885]
[1732910796554,0.6462,3582.8,3582.7,0.30885]
[1732910796762,0.92504,3582.8,3582.7,0.30885]
[1732910798456,4.19570148,3582.8,3582.7,0.30885]
[1732910799460,4.19570148,3582.8,3582.7,0.27885]
[1732910800455,0.92504,3582.8,3582.7,0.27885]
[1732910802166,0.92504,3582.8,3582.7,1.30683699]
[1732910802354,0.92504,3582.8,3582.7,1.02798699]
[1732910802758,0.92504,3582.8,3582.7,1.30683699]
[1732910803060,0.27886,3582.7,3582.5,0.6293]
[1732910803260,0.27886,3582.7,3582.6,1.30683699]
[1732910803466,6.38462033,3582.8,3582.7,0.27885]
[1732910803667,0.92505,3582.8,3582.7,0.27885]
[1732910803967,6.38308808,3582.8,3582.7,0.27885]
[1732910804159,0.27885,3582.7,3582.6,1.30683699]
[1732910804360,5.73695705,3582.7,3582.6,1.30683699]
[1732910805566,5.45810705,3582.7,3582.6,1.30683699]
[1732910806460,6.10430705,3582.8,3582.6,1.02798699]
[1732910806663,6.10430705,3582.8,3582.7,1.02798699]
[1732910806664,5.45810705,3582.8,3582.7,1.02798699]
[1732910806863,5.45810705,3582.9,3582.8,0.27884]
[1732910807062,1.191,3583.1,3582.8,3.2078]
[1732910807063,5.45810705,3583.0,3582.8,3.2078]
[1732910807260,5.45810705,3583.0,3582.9,1.30681699]
[1732910807563,5.45810705,3583.0,3582.9,1.51681699]